fUST/lending_fUST_20250605
["ID","MTS","AMOUNT","RATE_DAILY","PERIOD"]
[364537112,1749131452597,-3874.13,0.00021095,2]
[364537114,1749131452606,-1786.89,0.00021095,2]
[364537116,1749131452615,-1747.68,0.00021095,2]
[364537118,1749131452626,-585.63,0.00021095,2]
[364537120,1749131452635,-2376.16,0.00021095,2]
[364537122,1749131452644,-449.0,0.00021095,2]
[364537124,1749131452654,-531.71,0.00021095,2]
[364537126,1749131452666,-863.29,0.00021095,2]
[364537128,1749131452678,-471.25,0.00021095,2]
[364537130,1749131452690,-623.38,0.00021095,2]
[364537132,1749131452699,-174.70801368,0.00021106,2]
[364537134,1749131452709,-152.46668,0.0002111,2]
[364537136,1749131452720,-152.46668,0.0002111,2]
[364537138,1749131452729,-600.0,0.00021164,2]
[364537140,1749131452739,-3660.74381415,0.00021176,4]
[364537142,1749131452748,-504.7554611,0.00021201,2]
[364537144,1749131452758,-1000.0,0.00021256,2]
[364537146,1749131452768,-766.671718,0.00021364,3]
[364537148,1749131452777,-626.77,0.00021369,2]
[364537150,1749131452786,-574.26,0.00021369,2]
[364537152,1749131452796,-440.0,0.00021369,2]
[364537154,1749131452805,-642.71,0.00021369,2]
[364537156,1749131452815,-217.9476667,0.00021369,2]
[364537158,1749131452824,-440.0,0.00021369,2]
[364537160,1749131452833,-440.0,0.00021369,2]
[364537162,1749131452842,-440.0,0.00021369,2]
[364537164,1749131452852,-440.0,0.00021369,2]
[364537166,1749131452861,-440.0,0.00021369,2]
[364537168,1749131452871,-1015.31,0.00021369,2]
[364537170,1749131452880,-704.04,0.00021369,2]
[364537172,1749131452890,-465.78,0.00021369,2]
[364537174,1749131452899,-2735.39,0.00021369,2]
[364537176,1749131452909,-789.69,0.00021369,2]
[364537178,1749131452921,-1969.78,0.00021369,2]
[364537180,1749131452931,-596.24,0.00021369,2]
[364537182,1749131452941,-2098.57,0.00021369,2]
[364537184,1749131452951,-351.12705099,0.00021369,2]
[364537186,1749131452960,-1039.98,0.00021369,2]
[364537188,1749131452971,-575.99,0.00021369,2]
[364537190,1749131452981,-666.59,0.00021369,2]
[364537192,1749131452990,-457.56,0.00021369,2]
[364537194,1749131453000,-488.25,0.00021369,2]
[364537196,1749131453009,-458.75,0.00021369,2]
[364537198,1749131453019,-440.0,0.00021369,2]
[364537200,1749131453028,-1030.96,0.00021369,2]
[364537202,1749131453037,-440.0,0.00021369,2]
[364537204,1749131453047,-1130.5,0.00021369,2]
[364537206,1749131453056,-457.39,0.00021369,2]
[364537208,1749131453069,-440.0,0.00021369,2]
[364537210,1749131453078,-440.0,0.00021369,2]
[364537212,1749131453087,-440.0,0.00021369,2]
[364537214,1749131453096,-833.97,0.00021369,2]
[364537216,1749131453106,-2425.4,0.00021369,2]
[364537218,1749131453116,-768.09,0.00021369,2]
[364537220,1749131453126,-523.3,0.00021369,2]
[364537222,1749131453135,-3874.13,0.00021369,2]
[364537224,1749131453145,-1786.89,0.00021369,2]
[364537226,1749131453154,-1747.68,0.00021369,2]
[364537228,1749131453164,-585.63,0.00021369,2]
[364537230,1749131453173,-2376.16,0.00021369,2]
[364537232,1749131453182,-449.0,0.00021369,2]
[364537234,1749131453191,-531.71,0.00021369,2]
[364537236,1749131453200,-863.29,0.00021369,2]
[364537238,1749131453210,-471.25,0.00021369,2]
[364537239,1749131453219,-623.38,0.00021369,2]
[364537240,1749131453228,-3660.74381415,0.00021383,5]
[364537241,1749131453239,-151.0,0.00021383,2]
[364537242,1749131453248,-1242.953623,0.00021383,2]
[364537243,1749131453258,-1242.953623,0.00021383,2]
[364537244,1749131453267,-151.0,0.00021383,2]
[364537245,1749131453277,-756.051532,0.00021383,2]
[364537247,1749131453285,-756.051532,0.00021383,2]
[364537249,1749131453295,-207.4,0.00021446,2]
[364537251,1749131453304,-151.0,0.00021499,2]
[364537253,1749131453313,-157.78072945,0.00021499,2]
[364537255,1749131453322,-151.0,0.0002155,2]
[364537257,1749131453332,-721.4,0.00021556,2]
[364537259,1749131453342,-3660.74381415,0.0002159,5]
[364537261,1749131453351,-16000.0,0.00021633,2]
[364537263,1749131453360,-151.0,0.00021633,2]
[364537265,1749131453370,-234.8716,0.00021633,2]
[364537267,1749131453379,-178.079884,0.00021633,2]
[364537269,1749131453389,-178.079884,0.00021633,2]
[364537271,1749131453399,-500.0,0.00021643,4]
[364537273,1749131453408,-626.77,0.00021643,2]
[364537275,1749131453418,-574.26,0.00021643,2]
[364537277,1749131453427,-440.0,0.00021643,2]
[364537279,1749131453437,-642.71,0.00021643,2]
[364537281,1749131453447,-151.0,0.00021643,2]
[364537283,1749131453457,-2769.323051,0.00021643,2]
[364537285,1749131453467,-2769.323051,0.00021643,2]
[364537287,1749131453477,-253.516418,0.00021643,2]
[364537289,1749131453487,-440.0,0.00021643,2]
[364537291,1749131453496,-440.0,0.00021643,2]
[364537293,1749131453506,-440.0,0.00021643,2]
[364537295,1749131453516,-440.0,0.00021643,2]
[364537297,1749131453525,-440.0,0.00021643,2]
[364537299,1749131453536,-1015.31,0.00021643,2]
[364537301,1749131453545,-704.04,0.00021643,2]
[364537303,1749131453555,-465.78,0.00021643,2]
[364537305,1749131453565,-2735.39,0.00021643,2]
[364537307,1749131453575,-789.69,0.00021643,2]
[364537309,1749131453584,-1969.78,0.00021643,2]
[364537311,1749131453594,-596.24,0.00021643,2]
[364537313,1749131453603,-2098.57,0.00021643,2]
[364537315,1749131453612,-1039.98,0.00021643,2]
[364537317,1749131453623,-575.99,0.00021643,2]
[364537319,1749131453633,-666.59,0.00021643,2]
[364537321,1749131453643,-457.56,0.00021643,2]
[364537335,1749131453769,-488.25,0.00021643,2]
[364537337,1749131453780,-458.75,0.00021643,2]
[364537339,1749131453790,-440.0,0.00021643,2]
[364537342,1749131453800,-1030.96,0.00021643,2]
[364537344,1749131453810,-440.0,0.00021643,2]
[364537346,1749131453820,-1130.5,0.00021643,2]
[364537348,1749131453830,-457.39,0.00021643,2]
[364537350,1749131453839,-440.0,0.00021643,2]
[364537352,1749131453849,-440.0,0.00021643,2]
[364537354,1749131453859,-440.0,0.00021643,2]
[364537356,1749131453868,-833.97,0.00021643,2]
[364537357,1749131453879,-2425.4,0.00021643,2]
[364537360,1749131453890,-768.09,0.00021643,2]
[364537362,1749131453900,-523.3,0.00021643,2]
[364537364,1749131453909,-3874.13,0.00021643,2]
[364537366,1749131453918,-1786.89,0.00021643,2]
[364537367,1749131453928,-1747.68,0.00021643,2]
[364537370,1749131453938,-585.63,0.00021643,2]
[364537372,1749131453948,-2376.16,0.00021643,2]
[364537374,1749131453957,-449.0,0.00021643,2]
[364537376,1749131453967,-531.71,0.00021643,2]
[364537378,1749131453977,-863.29,0.00021643,2]
[364537380,1749131453986,-471.25,0.00021643,2]
[364537381,1749131453995,-623.38,0.00021643,2]
[364537383,1749131454005,-239.12613997,0.00021652,2]
[364537386,1749131454015,-721.4,0.00021656,2]
[364537387,1749131454025,-721.4,0.00021756,2]
[364537389,1749131454034,-3660.74381415,0.00021797,6]
[364537391,1749131454044,-1500.0,0.00021804,2]
[364537393,1749131454053,-721.4,0.00021856,2]
[364537395,1749131454064,-1736.91,0.000219,2]
[364537397,1749131454076,-174.70801368,0.000219,2]
[364537400,1749131454086,-152.46668,0.00021917,2]
[364537401,1749131454096,-152.46668,0.00021917,2]
[364537404,1749131454107,-626.77,0.00021917,2]
[364537405,1749131454116,-574.26,0.00021917,2]
[364537408,1749131454126,-440.0,0.00021917,2]
[364537410,1749131454135,-176.018762,0.00021917,2]
[364537411,1749131454147,-642.71,0.00021917,2]
[364537414,1749131454159,-176.018762,0.00021917,2]
[364537415,1749131454170,-270.001149,0.00021917,2]
[364537418,1749131454180,-440.0,0.00021917,2]
[364537419,1749131454189,-270.001149,0.00021917,2]
[364537422,1749131454198,-440.0,0.00021917,2]
[364537424,1749131454207,-440.0,0.00021917,2]
[364537426,1749131454216,-440.0,0.00021917,2]
[364537428,1749131454226,-440.0,0.00021917,2]
[364537429,1749131454235,-1015.31,0.00021917,2]
[364537431,1749131454246,-704.04,0.00021917,2]
[364537434,1749131454255,-465.78,0.00021917,2]
[364537436,1749131454266,-151.0,0.00021917,2]
[364537438,1749131454280,-2735.39,0.00021917,2]
[364537440,1749131454290,-789.69,0.00021917,2]
[364537442,1749131454300,-1969.78,0.00021917,2]
[364537444,1749131454312,-596.24,0.00021917,2]
[364537446,1749131454321,-2098.57,0.00021917,2]
[364537448,1749131454330,-1039.98,0.00021917,2]
[364537449,1749131454340,-575.99,0.00021917,2]
[364537451,1749131454349,-293.2642,0.00021917,2]
[364537453,1749131454359,-666.59,0.00021917,2]
[364537455,1749131454369,-293.2642,0.00021917,2]
[364537457,1749131454378,-457.56,0.00021917,2]
[364537459,1749131454388,-488.25,0.00021917,2]
[364537462,1749131454398,-500.0,0.00021917,2]
[364537464,1749131454407,-458.75,0.00021917,2]
[364537466,1749131454416,-440.0,0.00021917,2]
[364537468,1749131454426,-1030.96,0.00021917,2]
[364537470,1749131454435,-324.69,0.00021917,2]
[364537472,1749131454445,-457.39,0.00021917,2]
[364537474,1749131454454,-440.0,0.00021917,2]
[364537476,1749131454464,-440.0,0.00021917,2]
[364537478,1749131454473,-440.0,0.00021917,2]
[364537480,1749131454483,-833.97,0.00021917,2]
[364537482,1749131454493,-2425.4,0.00021917,2]
[364537484,1749131454502,-768.09,0.00021917,2]
[364537486,1749131454512,-523.3,0.00021917,2]
[364537488,1749131454522,-3874.13,0.00021917,2]
[364537490,1749131454531,-1786.89,0.00021917,2]
[364537492,1749131454541,-1747.68,0.00021917,2]
[364537494,1749131454551,-585.63,0.00021917,2]
[364537496,1749131454561,-2376.16,0.00021917,2]
[364537498,1749131454570,-449.0,0.00021917,2]
[364537500,1749131454580,-531.71,0.00021917,2]
[364537502,1749131454589,-863.29,0.00021917,2]
[364537504,1749131454598,-471.25,0.00021917,2]
[364537506,1749131454608,-623.38,0.00021917,2]
[364537508,1749131454617,-721.4,0.00021956,4]
[364537510,1749131454627,-500.0,0.00021973,2]
[364537512,1749131454637,-600.0,0.00021973,2]
[364537514,1749131454646,-500.0,0.00021973,2]
[364537516,1749131454655,-842.5625,0.00022,7]
[364537518,1749131454664,-151.0,0.00022,7]
[364537520,1749131454674,-151.0,0.00022,7]
[364537522,1749131454684,-2800.2,0.00022,7]
[364537524,1749131454694,-212.94059491,0.00022,7]
[364537526,1749131454703,-95383.84224233,0.00022,7]
[364538351,1749131789567,222.58526,0.00013699,2]
[364538356,1749132107242,297648.37682481,0.00025,120]
[364538358,1749132151025,488.0,0.00025,120]
[364538359,1749132273862,150.2,0.00016,7]
[364538396,1749132632829,-1003.0,0.00017,2]
[364538397,1749132632839,-696.44,0.00017287,2]
[364538398,1749132632849,-588.7692279,0.00017664,2]
[364538399,1749132632859,-1567.65688467,0.00017915,2]
[364538400,1749132632869,-230.97777393,0.00018256,2]
[364538401,1749132632878,-440.0,0.00018356,2]
[364538402,1749132632888,-440.0,0.00018356,2]
[364538403,1749132632898,-440.0,0.00018356,2]
[364538404,1749132632908,-440.0,0.00018356,2]
[364538405,1749132632918,-430.0,0.00018356,2]
[364538406,1749132632927,-440.0,0.00018356,2]
[364538407,1749132632938,-430.0,0.00018356,2]
[364538408,1749132632948,-440.0,0.00018356,2]
[364538409,1749132632958,-440.0,0.00018356,2]
[364538410,1749132632968,-440.0,0.00018356,2]
[364538411,1749132632978,-480.62177314,0.00018356,2]
[364538412,1749132632988,-430.0,0.00018356,2]
[364538413,1749132632998,-440.0,0.00018356,2]
[364538414,1749132633008,-440.0,0.00018356,2]
[364538415,1749132633018,-440.0,0.00018356,2]
[364538416,1749132633036,-440.0,0.00018356,2]
[364538417,1749132633049,-440.0,0.00018356,2]
[364538418,1749132633060,-440.0,0.00018356,2]
[364538419,1749132633072,-6436.0,0.00018356,5]
[364538420,1749132633083,-440.0,0.00018356,2]
[364538421,1749132633094,-440.0,0.00018356,2]
[364538422,1749132633105,-440.0,0.00018356,2]
[364538423,1749132633115,-440.0,0.00018356,2]
[364538424,1749132633125,-524.06645434,0.00018356,2]
[364538425,1749132633135,-440.0,0.00018356,2]
[364538426,1749132633145,-440.0,0.00018356,2]
[364538427,1749132633155,-440.0,0.00018356,2]
[364538428,1749132633166,-440.0,0.00018356,2]
[364538429,1749132633177,-541.7,0.00018356,2]
[364538430,1749132633190,-160.62495757,0.00018356,2]
[364538431,1749132633200,-440.0,0.00018356,2]
[364538432,1749132633210,-440.0,0.00018356,2]
[364538433,1749132633220,-440.0,0.00018356,2]
[364538434,1749132633230,-440.0,0.00018356,2]
[364538435,1749132633241,-440.0,0.00018356,2]
[364538436,1749132633251,-440.0,0.00018356,2]
[364538437,1749132633261,-380.0,0.00018356,2]
[364538438,1749132633270,-420.0,0.00018356,2]
[364538439,1749132633281,-439.41965538,0.00018356,2]
[364538440,1749132633291,-440.0,0.00018356,2]
[364538441,1749132633301,-440.0,0.00018356,2]
[364538442,1749132633312,-440.0,0.00018356,2]
[364538443,1749132633322,-440.0,0.00018356,2]
[364538444,1749132633333,-430.0,0.00018356,2]
[364538445,1749132633343,-253.44627421,0.00018356,2]
[364538446,1749132633357,-186.55372579,0.00018356,2]
[364538447,1749132633367,-153.845607,0.00018356,2]
[364538448,1749132633378,-229.04348935,0.00018356,2]
[364538449,1749132633465,-210.95651065,0.00018356,2]
[364538450,1749132633478,-440.0,0.00018356,2]
[364538451,1749132633487,-440.0,0.00018356,2]
[364538452,1749132633498,-440.0,0.00018356,2]
[364538453,1749132633507,-440.0,0.00018356,2]
[364538454,1749132633519,-151.0,0.00018356,2]
[364538455,1749132633529,-151.0,0.00018356,2]
[364538456,1749132633539,-158.6485198,0.00018356,2]
[364538457,1749132633549,-440.0,0.00018356,2]
[364538458,1749132633558,-440.0,0.00018356,2]
[364538459,1749132633568,-440.0,0.00018356,2]
[364538460,1749132633578,-440.0,0.00018356,2]
[364538461,1749132633588,-440.0,0.00018356,2]
[364538462,1749132633598,-440.0,0.00018356,2]
[364538463,1749132633609,-440.0,0.00018356,2]
[364538464,1749132633619,-440.0,0.00018356,2]
[364538465,1749132633629,-410.0,0.00018356,2]
[364538466,1749132633639,-440.0,0.00018356,2]
[364538467,1749132633649,-440.0,0.00018356,2]
[364538468,1749132633837,-440.0,0.00018356,2]
[364538469,1749132633849,-440.0,0.00018356,2]
[364538470,1749132633859,-440.0,0.00018356,2]
[364538471,1749132633869,-204.36756907,0.00018356,2]
[364538472,1749132633879,-440.0,0.00018356,2]
[364538473,1749132633889,-440.0,0.00018356,2]
[364538474,1749132633899,-440.0,0.00018356,2]
[364538475,1749132633909,-440.0,0.00018356,2]
[364538476,1749132633919,-457.94,0.00018356,2]
[364538477,1749132633930,-440.0,0.00018356,2]
[364538478,1749132633941,-440.0,0.00018356,2]
[364538479,1749132633951,-440.0,0.00018356,2]
[364538480,1749132633961,-660.9,0.00018356,2]
[364538481,1749132633971,-440.0,0.00018356,2]
[364538482,1749132633981,-440.0,0.00018356,2]
[364538483,1749132633990,-214.8133355,0.00018356,2]
[364538484,1749132634003,-225.1866645,0.00018356,2]
[364538485,1749132634013,-176.4870708,0.00018356,2]
[364538486,1749132634047,-263.5129292,0.00018356,2]
[364538487,1749132634057,-440.0,0.00018356,2]
[364538488,1749132634068,-337.24598555,0.00018356,2]
[364538500,1749132638577,-16000.0,0.00018345,2]
[364538501,1749132638587,-102.75401445,0.00018356,2]
[364538502,1749132638597,-440.0,0.00018356,2]
[364538503,1749132638606,-1312.94,0.00018356,2]
[364538504,1749132638616,-500.0,0.00018356,2]
[364538505,1749132638625,-430.0,0.00018356,2]
[364538506,1749132638635,-1878.17,0.00018356,2]
[364538507,1749132638644,-440.0,0.00018356,2]
[364538508,1749132638654,-1332.45,0.00018356,2]
[364538509,1749132638663,-420.0,0.00018356,2]
[364538510,1749132638673,-500.3,0.00018356,2]
[364538511,1749132638682,-440.0,0.00018356,2]
[364538512,1749132638691,-440.0,0.00018356,2]
[364538513,1749132638702,-440.0,0.00018356,2]
[364538514,1749132638711,-440.0,0.00018356,2]
[364538515,1749132638721,-710.42,0.00018356,2]
[364538516,1749132638730,-420.0,0.00018356,2]
[364538517,1749132638740,-440.0,0.00018356,2]
[364538518,1749132638750,-440.0,0.00018356,2]
[364538519,1749132638759,-430.38955463,0.00018356,2]
[364538520,1749132638769,-440.0,0.00018356,2]
[364538521,1749132638779,-440.0,0.00018356,2]
[364538522,1749132638789,-440.0,0.00018356,2]
[364538523,1749132638799,-430.0,0.00018356,2]
[364538524,1749132638809,-440.0,0.00018356,2]
[364538525,1749132638819,-199.47264877,0.00018356,2]
[364538526,1749132638828,-440.0,0.00018356,2]
[364538527,1749132638838,-440.0,0.00018356,2]
[364538528,1749132638847,-474.01025371,0.00018356,2]
[364538529,1749132638857,-440.0,0.00018356,2]
[364538530,1749132638866,-440.0,0.00018356,2]
[364538531,1749132638876,-440.0,0.00018356,2]
[364538532,1749132638886,-440.0,0.00018356,2]
[364538533,1749132638896,-440.0,0.00018356,2]
[364538534,1749132638905,-440.0,0.00018356,2]
[364538535,1749132638919,-440.0,0.00018356,2]
[364538536,1749132638929,-440.0,0.00018356,2]
[364538537,1749132638939,-440.0,0.00018356,2]
[364538538,1749132638952,-440.0,0.00018356,2]
[364538539,1749132638962,-440.0,0.00018356,2]
[364538540,1749132638972,-440.0,0.00018356,2]
[364538541,1749132638982,-440.0,0.00018356,2]
[364538542,1749132638992,-440.0,0.00018356,2]
[364538543,1749132639002,-440.0,0.00018356,2]
[364538544,1749132639012,-440.0,0.00018356,2]
[364538545,1749132639022,-410.0,0.00018356,2]
[364538546,1749132639032,-440.0,0.00018356,2]
[364538547,1749132639042,-440.0,0.00018356,2]
[364538548,1749132639052,-440.0,0.00018356,2]
[364538549,1749132639063,-440.0,0.00018356,2]
[364538550,1749132639073,-753.66,0.00018356,2]
[364538551,1749132639082,-440.0,0.00018356,2]
[364538552,1749132639092,-440.0,0.00018356,2]
[364538553,1749132639102,-500.0,0.00018356,2]
[364538554,1749132639112,-500.0,0.00018356,2]
[364538555,1749132639122,-440.0,0.00018356,2]
[364538556,1749132639131,-2277.83,0.00018356,2]
[364538557,1749132639141,-151.0,0.00018356,2]
[364538558,1749132639151,-440.0,0.00018356,2]
[364538559,1749132639160,-320.0,0.00018356,2]
[364538560,1749132639170,-440.0,0.00018356,2]
[364538561,1749132639180,-440.0,0.00018356,2]
[364538562,1749132639190,-521.23,0.00018356,2]
[364538563,1749132639204,-440.0,0.00018356,2]
[364538564,1749132639213,-440.0,0.00018356,2]
[364538565,1749132639223,-1038.63,0.00018356,2]
[364538566,1749132639233,-440.0,0.00018356,2]
[364538567,1749132639242,-349.81676198,0.00018356,2]
[364538568,1749132639251,-440.0,0.00018356,2]
[364538569,1749132639261,-440.0,0.00018356,2]
[364538570,1749132639270,-1545.48,0.00018356,2]
[364538571,1749132639280,-440.0,0.00018356,2]
[364538572,1749132639289,-440.0,0.00018356,2]
[364538573,1749132639298,-440.0,0.00018356,2]
[364538574,1749132639307,-481.71,0.00018356,2]
[364538575,1749132639317,-440.0,0.00018356,2]
[364538576,1749132639326,-440.0,0.00018356,2]
[364538577,1749132639337,-440.0,0.00018356,2]
[364538578,1749132639352,-440.0,0.00018356,2]
[364538579,1749132639362,-1060.27,0.00018356,2]
[364538580,1749132639371,-440.0,0.00018356,2]
[364538581,1749132639382,-440.0,0.00018356,2]
[364538582,1749132639393,-440.0,0.00018356,2]
[364538583,1749132639403,-440.0,0.00018356,2]
[364538584,1749132639413,-634.57,0.00018356,2]
[364538585,1749132639422,-440.0,0.00018356,2]
[364538586,1749132639432,-1405.12,0.00018356,2]
[364538587,1749132639444,-440.0,0.00018356,2]
[364538588,1749132639458,-208.6444991,0.00018356,2]
[364538589,1749132639468,-440.0,0.00018356,2]
[364538590,1749132639478,-457.2,0.00018356,2]
[364538591,1749132639488,-440.0,0.00018356,2]
[364538592,1749132639498,-521.5,0.00018356,2]
[364538593,1749132639508,-151.0,0.00018383,2]
[364538594,1749132639519,-151.0,0.00018383,2]
[364538595,1749132639529,-500.0,0.00018383,2]
[364538596,1749132639539,-500.0,0.00018383,2]
[364538597,1749132639548,-500.0,0.00018383,2]
[364538598,1749132639558,-198.0,0.00018411,2]
[364538599,1749132639568,-151.0,0.00018411,2]
[364538600,1749132639577,-519.70768548,0.00018411,2]
[364538601,1749132639587,-500.0,0.00018411,2]
[364538602,1749132639597,-500.0,0.00018411,2]
[364538603,1749132639607,-277.75440353,0.00018438,2]
[364538604,1749132639616,-500.0,0.00018438,2]
[364538605,1749132639625,-500.0,0.00018466,2]
[364538606,1749132639635,-500.0,0.00018493,2]
[364538607,1749132639645,-500.0,0.0001852,2]
[364538608,1749132639654,-500.0,0.00018548,2]
[364538609,1749132639664,-500.0,0.00018575,2]
[364538610,1749132639674,-500.0,0.00018603,2]
[364538611,1749132639683,-500.0,0.0001863,2]
[364538612,1749132639693,-472.2572686,0.0001863,2]
[364538613,1749132639706,-440.0,0.0001863,2]
[364538614,1749132639715,-440.0,0.0001863,2]
[364538615,1749132639726,-410.0,0.0001863,2]
[364538616,1749132639736,-440.0,0.0001863,2]
[364538617,1749132639746,-284.18736464,0.0001863,2]
[364538618,1749132639756,-440.0,0.0001863,2]
[364538619,1749132639766,-440.0,0.0001863,2]
[364538620,1749132639776,-440.0,0.0001863,2]
[364538621,1749132639785,-440.0,0.0001863,2]
[364538622,1749132639795,-440.0,0.0001863,2]
[364538623,1749132639805,-440.0,0.0001863,2]
[364538624,1749132639815,-408.97794139,0.0001863,2]
[364538625,1749132639825,-440.0,0.0001863,2]
[364538626,1749132639835,-440.0,0.0001863,2]
[364538627,1749132639845,-440.0,0.0001863,2]
[364538628,1749132639854,-440.0,0.0001863,2]
[364538629,1749132639864,-541.7,0.0001863,2]
[364538630,1749132639874,-440.0,0.0001863,2]
[364538631,1749132639883,-440.0,0.0001863,2]
[364538632,1749132639893,-291.80307538,0.0001863,2]
[364538633,1749132639903,-440.0,0.0001863,2]
[364538634,1749132639913,-440.0,0.0001863,2]
[364538635,1749132639923,-440.0,0.0001863,2]
[364538636,1749132639935,-440.0,0.0001863,2]
[364538637,1749132639945,-287.02708098,0.0001863,2]
[364538638,1749132639958,-440.0,0.0001863,2]
[364538639,1749132639968,-440.0,0.0001863,2]
[364538640,1749132639978,-440.0,0.0001863,2]
[364538641,1749132639988,-440.0,0.0001863,2]
[364538642,1749132639998,-560.82255718,0.0001863,2]
[364538643,1749132640008,-440.0,0.0001863,2]
[364538644,1749132640018,-440.0,0.0001863,2]
[364538645,1749132640028,-401.89756893,0.0001863,2]
[364538646,1749132640038,-440.0,0.0001863,2]
[364538647,1749132640047,-440.0,0.0001863,2]
[364538648,1749132640057,-440.0,0.0001863,2]
[364538649,1749132640067,-440.0,0.0001863,2]
[364538650,1749132640077,-321.47079416,0.0001863,2]
[364538651,1749132640087,-440.0,0.0001863,2]
[364538652,1749132640097,-440.0,0.0001863,2]
[364538653,1749132640106,-440.0,0.0001863,2]
[364538654,1749132640115,-440.0,0.0001863,2]
[364538655,1749132640125,-440.0,0.0001863,2]
[364538656,1749132640134,-440.0,0.0001863,2]
[364538657,1749132640144,-440.0,0.0001863,2]
[364538658,1749132640154,-224.75107337,0.0001863,2]
[364538659,1749132640163,-440.0,0.0001863,2]
[364538660,1749132640172,-196.26066889,0.0001863,2]
[364538661,1749132640181,-440.0,0.0001863,2]
[364538662,1749132640191,-660.9,0.0001863,2]
[364538663,1749132640203,-440.0,0.0001863,2]
[364538664,1749132640213,-440.0,0.0001863,2]
[364538665,1749132640222,-440.0,0.0001863,2]
[364538666,1749132640232,-440.0,0.0001863,2]
[364538668,1749132640277,-440.0,0.0001863,2]
[364538669,1749132640287,-440.0,0.0001863,2]
[364538670,1749132640297,-430.0,0.0001863,2]
[364538671,1749132640307,-1312.94,0.0001863,2]
[364538672,1749132640316,-1878.17,0.0001863,2]
[364538673,1749132640326,-440.0,0.0001863,2]
[364538674,1749132640336,-1332.45,0.0001863,2]
[364538675,1749132640345,-500.3,0.0001863,2]
[364538676,1749132640354,-440.0,0.0001863,2]
[364538677,1749132640364,-440.0,0.0001863,2]
[364538678,1749132640373,-440.0,0.0001863,2]
[364538679,1749132640384,-710.42,0.0001863,2]
[364538680,1749132640394,-440.0,0.0001863,2]
[364538681,1749132640404,-440.0,0.0001863,2]
[364538682,1749132640413,-440.0,0.0001863,2]
[364538683,1749132640423,-430.0,0.0001863,2]
[364538684,1749132640433,-440.0,0.0001863,2]
[364538685,1749132640445,-440.0,0.0001863,2]
[364538686,1749132640456,-440.0,0.0001863,2]
[364538687,1749132640465,-570.80315913,0.0001863,2]
[364538688,1749132640474,-440.0,0.0001863,2]
[364538689,1749132640484,-440.0,0.0001863,2]
[364538690,1749132640493,-440.0,0.0001863,2]
[364538691,1749132640502,-430.0,0.0001863,2]
[364538693,1749132640512,-440.0,0.0001863,2]
[364538695,1749132640523,-440.0,0.0001863,2]
[364538696,1749132640533,-440.0,0.0001863,2]
[364538697,1749132640542,-440.0,0.0001863,2]
[364538698,1749132640551,-440.0,0.0001863,2]
[364538699,1749132640560,-440.0,0.0001863,2]
[364538701,1749132640570,-440.0,0.0001863,2]